Workbook

Sheet Info
A1: Entwicklung und fachliche Betreuung durch: DB Netz AG Fachstelle Baubetriebstechnologie (I.NBF 52) Ansprechpartner: Nicholas Braun (nicholas.braun@deutschebahn.com) und Sören Griese (soeren.s.griese@deutschebahn.com) Leitfaden zum Referenzwertegeber: (mit Doppelklick öffnen)

Sheet Referenzwertegeber VS
R1: Hilfsfelder
A2: Referenzwertegeber für Sperrzeiten für Verkehrsstationen | E2: Bezeichnung und Angaben zum Bauvorhaben | I2: Sperrzeit | K2: Erläuterung | R2: Rückbau/Tage | S2: =+IFERROR(_xlfn.IFS(B16=Dropdown!B2,8/8,C16=Dropdown!B2,8/8,B16=Dropdown!B3,8/16,C16=Dropdown!B3,8/18,B16=Dropdown!B4,8/24,C16=Dropdown!B4,8/24),0) -> 0
E3: Bauvorhaben/Projektnummer | H3: Gesamtdauer in [h] | I3: =IFERROR(_xlfn.IFS(OR(B9=Dropdown!Q3,C9=Dropdown!Q3),IF(OR(AND(B7<>"",B12<>""),AND(C7<>"",C12<>"")),IF(Eingabe_Art_Mittel=Dropdown!A3,IF(I8<8,J8+J8+L8+N8+P8,8+J8+L8+N8+P8),IF(I8<8,I8+J8+K8*0.5+M8*0.8+N8*0.85+P8,8+J8+K8*0.5+M8*0.8+N8*0.85+P8)),"Angabe fehlt!"),OR(B9=Dropdown!Q2,C9=Dropdown!Q2),IF(OR(AND(B7<>"",B12<>""),AND(C7<>"",C12<>"")),IF(Eingabe_Art_Mittel=Dropdown!A3,IF(I8<8,0.75*(I8+J8+L8+N8)+P8,0.75*(8+J8+L8+N8)+P8),IF(I8<8,0.75*(I8+J8+K8*0.5+M8*0.8+N8*0.85)+P8,0.75*(8+J8+K8*0.5+M8*0.8+N8*0.85)+P8)),"Angabe fehlt!"),AND(B9="",C9=""),"Angabe fehlt!"),"Angabe fehlt!") -> Angabe fehlt! | J3: =+IF(AND(H38=Dropdown!A16,H39=""),"Begründung fehlt!","") ->  | L3: Pflichtfeld | R3: Rückbau/Woche | S3: =IFERROR(+_xlfn.IFS(B17=Dropdown!C2,'Referenzwertegeber VS'!S2/5,C17=Dropdown!C2,'Referenzwertegeber VS'!S2/5,B17=Dropdown!C3,'Referenzwertegeber VS'!S2/7,C17=Dropdown!C3,'Referenzwertegeber VS'!S2/7),0) -> 0
E4: Gleis | H4: Gesamtdauer in [Tagen] | I4: =IFERROR(_xlfn.IFS(OR(B9=Dropdown!Q3,C9=Dropdown!Q3),IF(OR(AND(B7<>"",B12<>"",B16<>""),AND(C7<>"",C12<>"",C16<>"")),IF(Eingabe_Art_Aussen=Dropdown!A3,IF(I8<8,I9+J9+L9+N9+P9,+S2+J9+L9+N9+P9),IF(I8<8,+I9+J9+K9*0.5+M9*0.8+N9*0.85+P9,+S2+J9+K9*0.5+M9*0.8+N9*0.85+P9)),"Angabe fehlt!"),OR(B9=Dropdown!Q2,C9=Dropdown!Q2),IF(OR(AND(B7<>"",B12<>""),AND(C7<>"",C12<>"")),IF(Eingabe_Art_Aussen=Dropdown!A3,IF(I8<8,0.75*(I9+J9+L9+N9)+P9,0.75*(S2+J9+L9+N9)+P9),IF(I8<8,0.75*(I9+J9+K9*0.5+M9*0.8+N9*0.85)+P9,0.75*(S2+J9+K9*0.5+M9*0.8+N9*0.85)+P9)),"Angabe fehlt!"),AND(B9="",C9=""),"Angabe fehlt!"),"Angabe fehlt!") -> Angabe fehlt! | L4: optionales Feld, wenn keine Angabe getätigt wird, werden die Leistungswerte des Standardfalls angenommen. | R4: Rampe ontop Zeit | S4: =+IF(AND(C12>100,B12="",S5<'Leistungswerte Mittelbstg'!B38*0.6),'Leistungswerte Mittelbstg'!B38-S5,0) -> 0
A5: Version 2.0 | E5: Bahnsteig | H5: Gesamtdauer in [Wochen] | I5: =IFERROR(_xlfn.IFS(OR(B9=Dropdown!Q3,C9=Dropdown!Q3),IF(OR(AND(B7<>"",B12<>"",B16<>"",B17<>""),AND(C7<>"",C12<>"",C16<>"",C17<>"")),IF(Eingabe_Art_Aussen=Dropdown!A3,IF(I8<8,+I10+J10+L10+N10+P10,+S3+J10+L10+N10+P10),IF(I8<8,+I10+J10+K10*0.5+M10*0.8+N10*0.85+P10,+S3+J10+K10*0.5+M10*0.8+N10*0.85+P10)),"Angabe fehlt!"),OR(B9=Dropdown!Q2,C9=Dropdown!Q2),IF(OR(AND(B7<>"",B12<>""),AND(C7<>"",C12<>"")),IF(Eingabe_Art_Aussen=Dropdown!A3,IF(I8<8,0.75*(I10+J10+L10+N10)+P10,0.75*(S3+J10+L10+N10)+P10),IF(I8<8,0.75*(I10+J10+K10*0.5+M10*0.8+N10*0.85)+P10,0.75*(S3+J10+K10*0.5+M10*0.8+N10*0.85)+P10)),"Angabe fehlt!"),AND(B9="",C9=""),"Angabe fehlt!"),"Angabe fehlt!") -> Angabe fehlt! | R5: Gessamt ohne on Top | S5: =+IF(OR(AND(B7<>"",B12<>""),AND(B7<>"",C12<>"")),IF(Eingabe_Art=Dropdown!A3,8+J8+L8+N8+32+40,8+J8+K8*0.5+M8*0.8+N8*0.85+32+40),"Angabe fehlt!") -> Angabe fehlt!
E6: Kommentare, falls erforderlich
A7: Art des Bahnsteiges | H7: Sperrzeit je Bauphase | I7: Rückbau | J7: Fundament + Kante | K7: Kabeltiefbau | L7: Entwässerung | M7: Verfüllen | N7: Pflastern | O7: Beleuchtung | P7: "onTop"-Sperrzeiten | S7: Schatten_Blattschutz
A8: Bauweise | H8: Gesamtdauer in [h] | I8: =_xlfn.IFS(OR(B9=Dropdown!Q3,C9=Dropdown!Q3),IF(OR(AND(B7<>"",B12<>""),AND(C7<>"",C12<>"")),+_xlfn.IFS(B7=Dropdown!A2,IF(AND(B12=0,B20="",OR(B21="",B21="nein"),OR(B23="",B23="nein")),"Angabe fehlt!",'Leistungswerte Außenbahnsteig'!T8*'Referenzwertegeber VS'!B12),'Referenzwertegeber VS'!C7=Dropdown!A3,IF(AND(C12=0,C20="",OR(C21="",C21="nein"),OR(C23="",C23="nein")),"Angabe fehlt!",'Leistungswerte Mittelbstg'!X22*'Referenzwertegeber VS'!C12*2)),"Angabe fehlt!"),OR(B9=Dropdown!Q2,C9=Dropdown!Q2),0,AND(B9="",C9=""),"Angabe fehlt!") -> Angabe fehlt! | J8: =_xlfn.IFS(AND(B9="",C9=""),"Angabe fehlt!",OR(B9=Dropdown!Q3,C9=Dropdown!Q3),IF(OR(AND(B7<>"",B12<>""),AND(C7<>"",C12<>"")),+_xlfn.IFS(B7=Dropdown!A2,IF(AND(B12=0,B20="",OR(B21="",B21="nein"),OR(B23="",B23="nein")),"Angabe fehlt!",'Leistungswerte Außenbahnsteig'!T9*'Referenzwertegeber VS'!B12),'Referenzwertegeber VS'!C7=Dropdown!A3,IF(AND(C12=0,C20="",OR(C21="",C21="nein"),OR(C23="",C23="nein")),"Angabe fehlt!",'Leistungswerte Mittelbstg'!X23*'Referenzwertegeber VS'!C12*2)),"Angabe fehlt!"),OR(B9=Dropdown!Q2,C9=Dropdown!Q2),IF(OR(AND(B7<>"",B12<>""),AND(C7<>"",C12<>"")),+_xlfn.IFS(B7=Dropdown!A2,IF(AND(B12=0,B20="",OR(B21="",B21="nein"),OR(B23="",B23="nein")),"Angabe fehlt!",0.75*('Leistungswerte Außenbahnsteig'!T9*'Referenzwertegeber VS'!B12)),'Referenzwertegeber VS'!C7=Dropdown!A3,IF(AND(C12=0,C20="",OR(C21="",C21="nein"),OR(C23="",C23="nein")),"Angabe fehlt!",0.75*('Leistungswerte Mittelbstg'!X23*'Referenzwertegeber VS'!C12*2))),"Angabe fehlt!")) -> Angabe fehlt! | K8: =IF(AND(B9="",C9=""),"Angabe fehlt!",IF(OR(AND(B7<>"",B12<>""),AND(C7<>"",C12<>"")),_xlfn.IFS(B7=Dropdown!A2,IF(AND(B12=0,B20="",OR(B21="",B21="nein"),OR(B23="",B23="nein")),"Angabe fehlt!",'Leistungswerte Außenbahnsteig'!T10*'Referenzwertegeber VS'!B12),'Referenzwertegeber VS'!C7=Dropdown!A3,IF(AND(C12=0,C20="",OR(C21="",C21="nein"),OR(C23="",C23="nein")),"Angabe fehlt!",'Leistungswerte Mittelbstg'!X24*'Referenzwertegeber VS'!C12)),"Angabe fehlt!")) -> Angabe fehlt! | L8: =IF(AND(B9="",C9=""),"Angabe fehlt!",IF(OR(AND(B7<>"",B12<>""),AND(C7<>"",C12<>"")),_xlfn.IFS(B7=Dropdown!A2,"in Kabeltiefbau enthalten",'Referenzwertegeber VS'!C7=Dropdown!A3,IF(AND(C12=0,C20="",OR(C21="",C21="nein"),OR(C23="",C23="nein")),"Angabe fehlt!",'Leistungswerte Mittelbstg'!X25*'Referenzwertegeber VS'!C12)),"Angabe fehlt!")) -> Angabe fehlt! | M8: =IF(AND(B9="",C9=""),"Angabe fehlt!",IF(OR(AND(B7<>"",B12<>""),AND(C7<>"",C12<>"")),_xlfn.IFS(B7=Dropdown!A2,IF(AND(B12=0,B20="",OR(B21="",B21="nein"),OR(B23="",B23="nein")),"Angabe fehlt!",'Leistungswerte Außenbahnsteig'!T11*'Referenzwertegeber VS'!B12),'Referenzwertegeber VS'!C7=Dropdown!A3,IF(AND(C12=0,C20="",OR(C21="",C21="nein"),OR(C23="",C23="nein")),"Angabe fehlt!",'Leistungswerte Mittelbstg'!X26*'Referenzwertegeber VS'!C12)),"Angabe fehlt!")) -> Angabe fehlt! | N8: =IF(AND(B9="",C9=""),"Angabe fehlt!",IF(OR(AND(B7<>"",B12<>""),AND(C7<>"",C12<>"")),_xlfn.IFS(B7=Dropdown!A2,IF(AND(B12=0,B20="",OR(B21="",B21="nein"),OR(B23="",B23="nein")),"Angabe fehlt!",'Leistungswerte Außenbahnsteig'!T12*'Referenzwertegeber VS'!B12),'Referenzwertegeber VS'!C7=Dropdown!A3,IF(AND(C12=0,C20="",OR(C21="",C21="nein"),OR(C23="",C23="nein")),"Angabe fehlt!",'Leistungswerte Mittelbstg'!X27*'Referenzwertegeber VS'!C12)),"Angabe fehlt!")) -> Angabe fehlt! | O8: =IF(AND(B9="",C9=""),"Angabe fehlt!",IF(OR(AND(B7<>"",B12<>""),AND(C7<>"",C12<>"")),_xlfn.IFS(B7=Dropdown!A2,IF(AND(B12=0,B20="",OR(B21="",B21="nein"),OR(B23="",B23="nein")),"Angabe fehlt!",'Leistungswerte Außenbahnsteig'!T13*'Referenzwertegeber VS'!B12),'Referenzwertegeber VS'!C7=Dropdown!A3,IF(AND(C12=0,C20="",OR(C21="",C21="nein"),OR(C23="",C23="nein")),"Angabe fehlt!",'Leistungswerte Mittelbstg'!X28*'Referenzwertegeber VS'!C12)),"Angabe fehlt!")) -> Angabe fehlt! | P8: =IF(AND(B9="",C9=""),"Angabe fehlt!",IF(OR(AND(B7<>"",B12<>""),AND(C7<>"",C12<>"")),_xlfn.IFS(B7=Dropdown!A2,IF(AND(B12=0,B20="",OR(B21="",B21="nein"),OR(B23="",B23="nein")),"Angabe fehlt!",'Leistungswerte Außenbahnsteig'!T16),'Referenzwertegeber VS'!C7=Dropdown!A3,IF(AND(C12=0,C20="",OR(C21="",C21="nein"),OR(C23="",C23="nein")),"Angabe fehlt!",'Leistungswerte Mittelbstg'!X31)),"Angabe fehlt!")) -> Angabe fehlt! | S8: ja
A9: Art des Bauvorhabens | H9: Gesamtdauer in [Tagen] | I9: =IFERROR(IF($B$7=Dropdown!$A$2,_xlfn.IFS($B$16=Dropdown!$B$2,'Referenzwertegeber VS'!I8/8,'Referenzwertegeber VS'!$B$16=Dropdown!$B$3,'Referenzwertegeber VS'!I8/16,$B$16=Dropdown!$B$4,'Referenzwertegeber VS'!I8/24),_xlfn.IFS($C$16=Dropdown!$B$2,'Referenzwertegeber VS'!I8/8,'Referenzwertegeber VS'!$C$16=Dropdown!$B$3,'Referenzwertegeber VS'!I8/16,$C$16=Dropdown!$B$4,'Referenzwertegeber VS'!I8/24)),"Angabe fehlt!") -> Angabe fehlt! | J9: =+IFERROR(IF($B$7=Dropdown!$A$2,_xlfn.IFS($B$16=Dropdown!$B$2,'Referenzwertegeber VS'!J8/8,'Referenzwertegeber VS'!$B$16=Dropdown!$B$3,'Referenzwertegeber VS'!J8/16,$B$16=Dropdown!$B$4,'Referenzwertegeber VS'!J8/24),_xlfn.IFS($C$16=Dropdown!$B$2,'Referenzwertegeber VS'!J8/8,'Referenzwertegeber VS'!$C$16=Dropdown!$B$3,'Referenzwertegeber VS'!J8/16,$C$16=Dropdown!$B$4,'Referenzwertegeber VS'!J8/24)),"Angabe fehlt!") -> Angabe fehlt! | K9: =+IFERROR(IF($B$7=Dropdown!$A$2,_xlfn.IFS($B$16=Dropdown!$B$2,'Referenzwertegeber VS'!K8/8,'Referenzwertegeber VS'!$B$16=Dropdown!$B$3,'Referenzwertegeber VS'!K8/16,$B$16=Dropdown!$B$4,'Referenzwertegeber VS'!K8/24),_xlfn.IFS($C$16=Dropdown!$B$2,'Referenzwertegeber VS'!K8/8,'Referenzwertegeber VS'!$C$16=Dropdown!$B$3,'Referenzwertegeber VS'!K8/16,$C$16=Dropdown!$B$4,'Referenzwertegeber VS'!K8/24)),"Angabe fehlt!") -> Angabe fehlt! | L9: =+IF(L8="in Kabeltiefbau enthalten","in Kabeltiefbau enthalten",IFERROR(IF($B$7=Dropdown!$A$2,_xlfn.IFS($B$16=Dropdown!$B$2,'Referenzwertegeber VS'!L8/8,'Referenzwertegeber VS'!$B$16=Dropdown!$B$3,'Referenzwertegeber VS'!L8/16,$B$16=Dropdown!$B$4,'Referenzwertegeber VS'!L8/24),_xlfn.IFS($C$16=Dropdown!$B$2,'Referenzwertegeber VS'!L8/8,'Referenzwertegeber VS'!$C$16=Dropdown!$B$3,'Referenzwertegeber VS'!L8/16,$C$16=Dropdown!$B$4,'Referenzwertegeber VS'!L8/24)),"Angabe fehlt!")) -> Angabe fehlt! | M9: =+IFERROR(IF($B$7=Dropdown!$A$2,_xlfn.IFS($B$16=Dropdown!$B$2,'Referenzwertegeber VS'!M8/8,'Referenzwertegeber VS'!$B$16=Dropdown!$B$3,'Referenzwertegeber VS'!M8/16,$B$16=Dropdown!$B$4,'Referenzwertegeber VS'!M8/24),_xlfn.IFS($C$16=Dropdown!$B$2,'Referenzwertegeber VS'!M8/8,'Referenzwertegeber VS'!$C$16=Dropdown!$B$3,'Referenzwertegeber VS'!M8/16,$C$16=Dropdown!$B$4,'Referenzwertegeber VS'!M8/24)),"Angabe fehlt!") -> Angabe fehlt! | N9: =+IFERROR(IF($B$7=Dropdown!$A$2,_xlfn.IFS($B$16=Dropdown!$B$2,'Referenzwertegeber VS'!N8/8,'Referenzwertegeber VS'!$B$16=Dropdown!$B$3,'Referenzwertegeber VS'!N8/16,$B$16=Dropdown!$B$4,'Referenzwertegeber VS'!N8/24),_xlfn.IFS($C$16=Dropdown!$B$2,'Referenzwertegeber VS'!N8/8,'Referenzwertegeber VS'!$C$16=Dropdown!$B$3,'Referenzwertegeber VS'!N8/16,$C$16=Dropdown!$B$4,'Referenzwertegeber VS'!N8/24)),"Angabe fehlt!") -> Angabe fehlt! | O9: =+IFERROR(IF($B$7=Dropdown!$A$2,_xlfn.IFS($B$16=Dropdown!$B$2,'Referenzwertegeber VS'!O8/8,'Referenzwertegeber VS'!$B$16=Dropdown!$B$3,'Referenzwertegeber VS'!O8/16,$B$16=Dropdown!$B$4,'Referenzwertegeber VS'!O8/24),_xlfn.IFS($C$16=Dropdown!$B$2,'Referenzwertegeber VS'!O8/8,'Referenzwertegeber VS'!$C$16=Dropdown!$B$3,'Referenzwertegeber VS'!O8/16,$C$16=Dropdown!$B$4,'Referenzwertegeber VS'!O8/24)),"Angabe fehlt!") -> Angabe fehlt! | P9: =+IFERROR(IF($B$7=Dropdown!$A$2,_xlfn.IFS($B$16=Dropdown!$B$2,'Referenzwertegeber VS'!P8/8,'Referenzwertegeber VS'!$B$16=Dropdown!$B$3,'Referenzwertegeber VS'!P8/16,$B$16=Dropdown!$B$4,'Referenzwertegeber VS'!P8/24),_xlfn.IFS($C$16=Dropdown!$B$2,'Referenzwertegeber VS'!P8/8,'Referenzwertegeber VS'!$C$16=Dropdown!$B$3,'Referenzwertegeber VS'!P8/16,$C$16=Dropdown!$B$4,'Referenzwertegeber VS'!P8/24)),"Angabe fehlt!") -> Angabe fehlt!
H10: Gesamtdauer in [Wochen] | I10: =+IFERROR(IF($B$7=Dropdown!$A$2,_xlfn.IFS($B$17=Dropdown!$C$2,'Referenzwertegeber VS'!I9/5,'Referenzwertegeber VS'!$B$17=Dropdown!$C$3,'Referenzwertegeber VS'!I9/7),_xlfn.IFS($C$17=Dropdown!$C$2,'Referenzwertegeber VS'!I9/5,'Referenzwertegeber VS'!$C$17=Dropdown!$C$3,'Referenzwertegeber VS'!I9/7)),"Angabe fehlt!") -> Angabe fehlt! | J10: =+IFERROR(IF($B$7=Dropdown!$A$2,_xlfn.IFS($B$17=Dropdown!$C$2,'Referenzwertegeber VS'!J9/5,'Referenzwertegeber VS'!$B$17=Dropdown!$C$3,'Referenzwertegeber VS'!J9/7),_xlfn.IFS($C$17=Dropdown!$C$2,'Referenzwertegeber VS'!J9/5,'Referenzwertegeber VS'!$C$17=Dropdown!$C$3,'Referenzwertegeber VS'!J9/7)),"Angabe fehlt!") -> Angabe fehlt! | K10: =+IFERROR(IF($B$7=Dropdown!$A$2,_xlfn.IFS($B$17=Dropdown!$C$2,'Referenzwertegeber VS'!K9/5,'Referenzwertegeber VS'!$B$17=Dropdown!$C$3,'Referenzwertegeber VS'!K9/7),_xlfn.IFS($C$17=Dropdown!$C$2,'Referenzwertegeber VS'!K9/5,'Referenzwertegeber VS'!$C$17=Dropdown!$C$3,'Referenzwertegeber VS'!K9/7)),"Angabe fehlt!") -> Angabe fehlt! | L10: =+IF(L8="in Kabeltiefbau enthalten","in Kabeltiefbau enthalten",IFERROR(IF($B$7=Dropdown!$A$2,_xlfn.IFS($B$17=Dropdown!$C$2,'Referenzwertegeber VS'!L9/5,'Referenzwertegeber VS'!$B$17=Dropdown!$C$3,'Referenzwertegeber VS'!L9/7),_xlfn.IFS($C$17=Dropdown!$C$2,'Referenzwertegeber VS'!L9/5,'Referenzwertegeber VS'!$C$17=Dropdown!$C$3,'Referenzwertegeber VS'!L9/7)),"Angabe fehlt!")) -> Angabe fehlt! | M10: =+IFERROR(IF($B$7=Dropdown!$A$2,_xlfn.IFS($B$17=Dropdown!$C$2,'Referenzwertegeber VS'!M9/5,'Referenzwertegeber VS'!$B$17=Dropdown!$C$3,'Referenzwertegeber VS'!M9/7),_xlfn.IFS($C$17=Dropdown!$C$2,'Referenzwertegeber VS'!M9/5,'Referenzwertegeber VS'!$C$17=Dropdown!$C$3,'Referenzwertegeber VS'!M9/7)),"Angabe fehlt!") -> Angabe fehlt! | N10: =+IFERROR(IF($B$7=Dropdown!$A$2,_xlfn.IFS($B$17=Dropdown!$C$2,'Referenzwertegeber VS'!N9/5,'Referenzwertegeber VS'!$B$17=Dropdown!$C$3,'Referenzwertegeber VS'!N9/7),_xlfn.IFS($C$17=Dropdown!$C$2,'Referenzwertegeber VS'!N9/5,'Referenzwertegeber VS'!$C$17=Dropdown!$C$3,'Referenzwertegeber VS'!N9/7)),"Angabe fehlt!") -> Angabe fehlt! | O10: =+IFERROR(IF($B$7=Dropdown!$A$2,_xlfn.IFS($B$17=Dropdown!$C$2,'Referenzwertegeber VS'!O9/5,'Referenzwertegeber VS'!$B$17=Dropdown!$C$3,'Referenzwertegeber VS'!O9/7),_xlfn.IFS($C$17=Dropdown!$C$2,'Referenzwertegeber VS'!O9/5,'Referenzwertegeber VS'!$C$17=Dropdown!$C$3,'Referenzwertegeber VS'!O9/7)),"Angabe fehlt!") -> Angabe fehlt! | P10: =+IFERROR(IF($B$7=Dropdown!$A$2,_xlfn.IFS($B$17=Dropdown!$C$2,'Referenzwertegeber VS'!P9/5,'Referenzwertegeber VS'!$B$17=Dropdown!$C$3,'Referenzwertegeber VS'!P9/7),_xlfn.IFS($C$17=Dropdown!$C$2,'Referenzwertegeber VS'!P9/5,'Referenzwertegeber VS'!$C$17=Dropdown!$C$3,'Referenzwertegeber VS'!P9/7)),"Angabe fehlt!") -> Angabe fehlt!
A11: Maße des Bahnsteigs
A12: Bahnsteiglänge in [m]
A13: Bahnsteigbreite in [m] | H13: Auflistung der "onTop"-Sperrzeiten | I13: Sperrzeit in [h] | J13: Sperrzeit "im Schatten" [%]
H14: Sicherungsmaßnahmen | I14: =+IFERROR(_xlfn.IFS(B7=Dropdown!A2,'Leistungswerte Außenbahnsteig'!U25,'Referenzwertegeber VS'!C7=Dropdown!A3,'Leistungswerte Mittelbstg'!Y42),"") ->  | J14: 0
A15: Arbeitszeit | H15: Hilfsbrücke | I15: =+_xlfn.IFS(B7=Dropdown!A2,'Leistungswerte Außenbahnsteig'!U17,C7=Dropdown!A3,'Leistungswerte Mittelbstg'!Y32,'Referenzwertegeber VS'!B7="","") ->  | J15: 0
A16: Schicht pro Tag (Ziel: Zweischichtig, Schichtlänge 8h) | H16: Behelfsbahnsteig | I16: =+_xlfn.IFS(B7=Dropdown!A2,'Leistungswerte Außenbahnsteig'!U18+'Leistungswerte Außenbahnsteig'!U19,C7=Dropdown!A3,'Leistungswerte Mittelbstg'!Y33+'Leistungswerte Mittelbstg'!Y34,'Referenzwertegeber VS'!B7="","") ->  | J16: 0
A17: Anzahl Arbeitstage pro Woche | H17: Bahnsteigdach | I17: =+_xlfn.IFS(B7=Dropdown!A2,'Leistungswerte Außenbahnsteig'!U20,C7=Dropdown!A3,'Leistungswerte Mittelbstg'!Y35,'Referenzwertegeber VS'!B7="","") ->  | J17: 0
H18: Fachdienste | I18: =+_xlfn.IFS(B7=Dropdown!A2,'Leistungswerte Außenbahnsteig'!U21,C7=Dropdown!A3,'Leistungswerte Mittelbstg'!Y36,'Referenzwertegeber VS'!B7="","") ->  | J18: 0
A19: Austattung der Verkehrsstation | H19: Aufzug | I19: =+_xlfn.IFS(B7=Dropdown!A2,'Leistungswerte Außenbahnsteig'!U22,C7=Dropdown!A3,'Leistungswerte Mittelbstg'!Y37,'Referenzwertegeber VS'!B7="","") ->  | J19: =+_xlfn.IFS(AND(B12<=100,C12=""),0%,AND(B12>100,C12=""),70%,AND(B12="",C12<=100),0%,AND(B12="",C12>100),70%) -> 0
A20: Neubau Bahnsteigdach vorhanden, wenn ja Länge in [m] | H20: Rampe | I20: =+_xlfn.IFS(B7=Dropdown!A2,"entfällt",C7=Dropdown!A3,'Leistungswerte Mittelbstg'!Y38,'Referenzwertegeber VS'!B7="","") ->  | J20: =IFERROR(+_xlfn.IFS(AND(B12<=100,C12="",S4=0),0%,AND(B12>100,C12=""),0%,AND(B12="",C12<=100,S4=0),0%,AND(B12="",C12>100,S4<>0),('Leistungswerte Mittelbstg'!B38-S4)/'Leistungswerte Mittelbstg'!B38,AND(B12="",C12>100,S4=0),60%),0) -> 0
A21: Neubau Aufzug/Rampe | H21: Treppen | I21: =+_xlfn.IFS(B7=Dropdown!A2,'Leistungswerte Außenbahnsteig'!U23,C7=Dropdown!A3,'Leistungswerte Mittelbstg'!Y39,'Referenzwertegeber VS'!B7="","") ->  | J21: =+_xlfn.IFS(AND(B12<=100,C12=""),0%,AND(B12>100,C12=""),70%,AND(B12="",C12<=100),0%,AND(B12="",C12>100),70%) -> 0
A22: Anzahl Aufzug/Rampe [Stück ] | H22: Personenunterführung - Anteil HB | I22: =+_xlfn.IFS(B7=Dropdown!A2,'Leistungswerte Außenbahnsteig'!U24,C7=Dropdown!A3,'Leistungswerte Mittelbstg'!Y40,'Referenzwertegeber VS'!B7="","") ->  | J22: 0
A23: Neubau Treppen | H23: Behelfsüberführung | I23: =IFERROR(_xlfn.IFS(B7=Dropdown!A2,"entfällt",C7=Dropdown!A3,+'Leistungswerte Mittelbstg'!Y41),"") ->  | J23: 0
A24: Anzahl Treppen [Stück] | H24: zusätzliche Maßnahmen | I24: =+IFERROR(_xlfn.IFS(B7=Dropdown!A2,'Leistungswerte Außenbahnsteig'!U26,'Referenzwertegeber VS'!C7=Dropdown!A3,'Leistungswerte Mittelbstg'!Y43),"") ->  | J24: 0
A25: Neubau Personenunterführung unter Hilfsbrücke
A27: Örtliche Gegebenheiten
A28: Baugrund
A29: Dammlage? Stützwand erforderlich?
A30: Logistik
A32: Provisorische Maßnahmen
A33: Behelfsbahnsteig erforderlich, wenn ja Länge in [m]
A34: Behelfsüberführung (vormontiert)
A35: Anzahl der zusätzlich erforderlichen Hilfsbrücken [Stück] außerhalb der PU
A37: Sonstige Arbeiten
A38: erforderlicher Aufwand der Fachdienste
A40: Reisendenverkehr
A41: Arbeiten nur in Nachtschichten (aufgr. Reisendenverkehr)
A42: Reduzierte Bahnsteiglänge (Halbe Bahnsteiglänge für Reisendenverkehr vorhanden, Arbeiten nur in Nachtschichten)
A43: Längsteilung (nur eine Kante nutzbar)
A45: Zusätzliche Maßnahmen - Bezeichnung

Sheet Leistungswerte Außenbahnsteig (hidden)
D1: Bahnsteigbreite | E1: Faktor | F1: Baugrund | G1: Faktor | H1: Stützwand | I1: Faktor | J1: Reisendenverkehr | K1: Faktor | L1: Logistik _Abstg | M1: Faktor | N1: Bauweise | O1: Faktor | Q1: Reduktionsfaktor
D2: 2,75 m | E2: 1 | F2: leicht | G2: 1.3 | H2: ja | I2: 0.8 | J2: ja Rückbau Kante | K2: 0.9 | L2: Standard (feldseitig) | M2: 1 | N2: konventionel | O2: 1 | Q2: Parallele Arbeiten
D3: > 2,75 m | E3: 0.9 | F3: mittel | G3: 1 | H3: nein | I3: 1 | J3: ja Verfüllen kabel | K3: 0.5 | L3: schwierig (gleisgebunden) | M3: 0.9 | N3: modular | O3: =1/0.65 -> 1.538461538
F4: schwer | G4: 0.75 | J4: nein | K4: 1 | L4: sehr schwierig (ESTW, sehr lange Wege, etc.) | M4: 0.7
B6: Standardfall | D6: Faktor Bahnsteigbreite | F6: Baugrund | H6: Stützwand | J6: Reisendenverkehr | L6: Logistik _Abstg | N6: Bauweise | S6: Mit Einflussfaktoren noch Auswahl im Wertegeber
A7: Art der Arbeit | B7: [m/h] | C7: [h/m] | D7: [m/h] | F7: [m/h] | H7: [m/h] | J7: [m/h] | L7: [m/h] | N7: [m/h] | S7: [m/h] | T7: [h/m]
A8: Rückbau | B8: 3 | C8: =1/B8 -> 0.3333333333 | D8: =+IF('Referenzwertegeber VS'!$B$13=Dropdown!$D$3,$E$3,1) -> 1 | F8: 1 | H8: 1 | J8: =+IF('Referenzwertegeber VS'!$B$41=Dropdown!$H$2,$K$2,$K$4) -> 1 | L8: =+IFERROR(_xlfn.IFS('Referenzwertegeber VS'!$B$30=Dropdown!$J$2,'Leistungswerte Außenbahnsteig'!$M$2,'Referenzwertegeber VS'!$B$30=Dropdown!$J$3,'Leistungswerte Außenbahnsteig'!$M$3,'Referenzwertegeber VS'!$B$30=Dropdown!$J$4,'Leistungswerte Außenbahnsteig'!$M$4),1) -> 1 | N8: =IFERROR(+_xlfn.IFS('Referenzwertegeber VS'!$B$8=Dropdown!$P$2,'Leistungswerte Außenbahnsteig'!$O$2,'Referenzwertegeber VS'!$B$8=Dropdown!$P$3,'Leistungswerte Außenbahnsteig'!$O$3),$O$2) -> 1 | Q8: 1 | S8: =+B8*D8*F8*H8*J8*L8*N8*Q8 -> 3 | T8: =1/S8 -> 0.3333333333
A9: Fundament + Kante setzen | B9: 2.25 | C9: =1/B9 -> 0.4444444444 | D9: 1 | F9: =+IFERROR(_xlfn.IFS('Referenzwertegeber VS'!$B$28=Dropdown!$E$2,$G$2,'Referenzwertegeber VS'!$B$28=Dropdown!$E$4,$G$4),$G$3) -> 1 | H9: =+IF('Referenzwertegeber VS'!$B$29=Dropdown!$F$2,$I$2,$I$3) -> 1 | J9: =+IF('Referenzwertegeber VS'!$B$41=Dropdown!$H$2,$K$2,$K$4) -> 1 | L9: =+IFERROR(_xlfn.IFS('Referenzwertegeber VS'!$B$30=Dropdown!$J$2,'Leistungswerte Außenbahnsteig'!$M$2,'Referenzwertegeber VS'!$B$30=Dropdown!$J$3,'Leistungswerte Außenbahnsteig'!$M$3,'Referenzwertegeber VS'!$B$30=Dropdown!$J$4,'Leistungswerte Außenbahnsteig'!$M$4),1) -> 1 | N9: =IFERROR(+_xlfn.IFS('Referenzwertegeber VS'!$B$8=Dropdown!$P$2,'Leistungswerte Außenbahnsteig'!$O$2,'Referenzwertegeber VS'!$B$8=Dropdown!$P$3,'Leistungswerte Außenbahnsteig'!$O$3),$O$2) -> 1 | Q9: 1 | S9: =+B9*D9*F9*H9*J9*L9*N9*Q9 -> 2.25 | T9: =1/S9 -> 0.4444444444
A10: Kabeltiefbau und Entwässerung | B10: 15.63 | C10: =1/B10 -> 0.06397952655 | D10: 1 | F10: 1 | H10: 1 | J10: =+IF('Referenzwertegeber VS'!$B$41=Dropdown!$H$2,$K$3,$K$4) -> 1 | L10: 1 | N10: =IFERROR(+_xlfn.IFS('Referenzwertegeber VS'!$B$8=Dropdown!$P$2,'Leistungswerte Außenbahnsteig'!$O$2,'Referenzwertegeber VS'!$B$8=Dropdown!$P$3,'Leistungswerte Außenbahnsteig'!$O$3),$O$2) -> 1 | Q10: 1 | S10: 15.63 | T10: 0.06397952655
A11: Verfüllen | B11: 4 | C11: 0.25 | D11: =+IF('Referenzwertegeber VS'!$B$13=Dropdown!$D$3,$E$3,1) -> 1 | F11: =+IFERROR(_xlfn.IFS('Referenzwertegeber VS'!$B$28=Dropdown!$E$2,$G$2,'Referenzwertegeber VS'!$B$28=Dropdown!$E$4,$G$4),$G$3) -> 1 | H11: =+IF('Referenzwertegeber VS'!$B$29=Dropdown!$F$2,$I$2,$I$3) -> 1 | J11: =+IF('Referenzwertegeber VS'!$B$41=Dropdown!$H$2,$K$3,$K$4) -> 1 | L11: =+IFERROR(_xlfn.IFS('Referenzwertegeber VS'!$B$30=Dropdown!$J$2,'Leistungswerte Außenbahnsteig'!$M$2,'Referenzwertegeber VS'!$B$30=Dropdown!$J$3,'Leistungswerte Außenbahnsteig'!$M$3,'Referenzwertegeber VS'!$B$30=Dropdown!$J$4,'Leistungswerte Außenbahnsteig'!$M$4),1) -> 1 | N11: =IFERROR(+_xlfn.IFS('Referenzwertegeber VS'!$B$8=Dropdown!$P$2,'Leistungswerte Außenbahnsteig'!$O$2,'Referenzwertegeber VS'!$B$8=Dropdown!$P$3,'Leistungswerte Außenbahnsteig'!$O$3),$O$2) -> 1 | Q11: 1 | S11: 4 | T11: 0.25
A12: Pflastern | B12: 3 | C12: 0.3333333333 | D12: =+IF('Referenzwertegeber VS'!$B$13=Dropdown!$D$3,$E$3,1) -> 1 | F12: 1 | H12: 1 | J12: 1 | L12: 1 | N12: =IFERROR(+_xlfn.IFS('Referenzwertegeber VS'!$B$8=Dropdown!$P$2,'Leistungswerte Außenbahnsteig'!$O$2,'Referenzwertegeber VS'!$B$8=Dropdown!$P$3,'Leistungswerte Außenbahnsteig'!$O$3),$O$2) -> 1 | Q12: 1 | S12: 3 | T12: 0.3333333333
A13: Beleuchtung | B13: 20 | C13: 0.05 | D13: 1 | F13: 1 | H13: 1 | J13: 1 | L13: 1 | N13: =IFERROR(+_xlfn.IFS('Referenzwertegeber VS'!$B$8=Dropdown!$P$2,'Leistungswerte Außenbahnsteig'!$O$2,'Referenzwertegeber VS'!$B$8=Dropdown!$P$3,'Leistungswerte Außenbahnsteig'!$O$3),$O$2) -> 1 | Q13: 1 | S13: 20 | T13: 0
A15: Leistungswerte für Einflussfaktoren | T15: Sperrzeit on Top
S16: Summe | T16: =SUM(T17:T26) -> 72
A17: Hilfsbrücke | B17: 62 | C17: h | T17: =+B17*'Referenzwertegeber VS'!B35 -> 0 | U17: =+T17 -> 0
A18: Behelfsbahsnteig-Errichtung | B18: 0.5 | C18: h/m | T18: =+B18*'Referenzwertegeber VS'!B33 -> 0 | U18: =+T18 -> 0
A19: Behelfsbahsnteig-Rückbau | B19: =1/4 -> 0.25 | C19: h/m | T19: =+'Referenzwertegeber VS'!B33*'Leistungswerte Außenbahnsteig'!B19 -> 0 | U19: =+T19 -> 0
A20: Bahnsteigdach | B20: 1 | C20: h/m | T20: =+B20*'Referenzwertegeber VS'!B20 -> 0 | U20: =+T20 -> 0
A21: Fachdienste | B21: 80 | C21: h | T21: =+IF('Referenzwertegeber VS'!B38=Dropdown!G3,'Leistungswerte Außenbahnsteig'!B21,40) -> 40 | U21: =+T21 -> 40
A22: Aufzug | B22: 120 | C22: h | T22: =+IF('Referenzwertegeber VS'!B21=Dropdown!L3,'Leistungswerte Außenbahnsteig'!B22*'Referenzwertegeber VS'!B22*(1-'Referenzwertegeber VS'!J19),0) -> 0 | U22: =+IF('Referenzwertegeber VS'!B21=Dropdown!L3,'Leistungswerte Außenbahnsteig'!B22*'Referenzwertegeber VS'!B22,0) -> 0
A23: Treppen | B23: 120 | C23: h | T23: =+IF('Referenzwertegeber VS'!B23=Dropdown!M2,'Leistungswerte Außenbahnsteig'!B23*'Referenzwertegeber VS'!B24*(1-'Referenzwertegeber VS'!J21),0) -> 0 | U23: =+IF('Referenzwertegeber VS'!B23=Dropdown!M2,'Leistungswerte Außenbahnsteig'!B23*'Referenzwertegeber VS'!B24,0) -> 0
A24: PU | B24: 124 | C24: h | T24: =+IF('Referenzwertegeber VS'!B25=Dropdown!N2,'Leistungswerte Außenbahnsteig'!B24,0) -> 0 | U24: =+T24 -> 0
A25: Sicherung | B25: 32 | C25: h | T25: =+B25 -> 32 | U25: =+T25 -> 32
A26: Anteil DB Netz AG | T26: =SUM('Referenzwertegeber VS'!B46:B54) -> 0 | U26: =+T26 -> 0

Sheet Leistungswerte Mittelbstg (hidden)
A1: Bahnsteiglänge in [m] | B1: =+'Referenzwertegeber VS'!C12 -> 0
A3: Sperrzeit
A4: Gesamtdauer in [h] | B4: =SUM(D22:D28) -> 0 | D4: =+B1*(2*X22+2*X23+X24+X25+X26+X27+X28) -> 0 | U4: 200 | V4: =+(X22+X23+X24+X25+X26+X27+X28)*U4+200*(X22+X23) -> 731.5567439
A5: Gesamtdauer in [Tagen] | B5: =+B4/24 -> 0
A6: Gesamtdauer in [Wochen] | B6: =+B5/7 -> 0
A7: Dauer in Einschichtbetrieb(8 Stunden) 5 Tage Woche [Tagen] | B7: =+B4/8 -> 0
A8: Dauer in Einschichtbetrieb(8 Stunden) 5 Tage Woche [Wochen] | B8: =+B7/5 -> 0
A9: Dauer in Zweischichtbetrieb(jeweils 8 Stunden) 5 Tage Woche [Wochen] | B9: =+B4/16/5 -> 0
G14: Bahnsteigbreite | H14: Faktor | I14: Baugrund | J14: Faktor | K14: Längsteilung | L14: Faktor | M14: Reisendenverkehr | N14: Faktor | O14: Logistik_Mbstg | P14: Faktor | Q14: Bauweise | R14: Faktor | T14: Reduktionsfaktor
G15: 3,30 m - 5,49 m | H15: 1.3 | I15: leicht | J15: 1.3 | K15: ja | L15: 0.8 | M15: ja Rückbau, kante | N15: 0.9 | O15: Standard (gleisgebunden, beim Verfüllen mit Selbstentladewagen) | P15: 1 | Q15: konventionel | R15: 1 | T15: Parallele Arbeiten
G16: 5,50 m | H16: 1 | I16: mittel | J16: 1 | K16: nein | L16: 1 | M16: ja Verfüllen Kabel | N16: 0.5 | O16: schwierig (LST Anpassung, Baustellenzufahrt über Gleise (höhengleich)) | P16: 0.9 | Q16: modular | R16: =1/0.75 -> 1.333333333
G17: >5,50 m | H17: 0.9 | I17: schwer | J17: 0.75 | M17: nein | N17: 1 | O17: sehr schwierig (ESTW, sehr lange Wege, etc.) | P17: 0.7
G20: Faktor Bahnsteigbreite | I20: Baugrund | K20: Längsteilung | M20: Reisendenverkehr | O20: Logistik_Mbstg | Q20: Bauweise | W20: Mit Einflussfaktoren noch Auswahl im Wertegeber
A21: Art der Arbeit | B21: [m/h] | C21: [h/m] | D21: Dauer in [h] pro xxx m | G21: [m/h] | I21: [m/h] | K21: [m/h] | M21: [m/h] | O21: [m/h] | Q21: [m/h] | W21: [m/h] | X21: [h/m]
A22: Rückbau | B22: 2.25 | C22: =1/B22 -> 0.4444444444 | D22: =+$B$1*C22*2 -> 0 | E22: mit Faktor 2 | G22: =+IFERROR(_xlfn.IFS('Referenzwertegeber VS'!$C$13=Dropdown!$D$11,'Leistungswerte Mittelbstg'!$H$15,'Referenzwertegeber VS'!$C$13=Dropdown!$D$12,'Leistungswerte Außenbahnsteig'!$G$3,'Referenzwertegeber VS'!$C$13=Dropdown!$D$13,'Leistungswerte Außenbahnsteig'!$G$4),1) -> 1 | I22: 1 | K22: 1 | M22: =+IF('Referenzwertegeber VS'!$C$41=Dropdown!$H$2,$N$15,$N$17) -> 1 | O22: =+IFERROR(_xlfn.IFS('Referenzwertegeber VS'!$C$30=Dropdown!$K$2,'Leistungswerte Mittelbstg'!$P$15,'Referenzwertegeber VS'!$C$30=Dropdown!$K$3,'Leistungswerte Mittelbstg'!$P$16,'Referenzwertegeber VS'!$C$30=Dropdown!$K$4,'Leistungswerte Mittelbstg'!$P$17),1) -> 1 | Q22: =IFERROR(+_xlfn.IFS('Referenzwertegeber VS'!$C$8=Dropdown!$P$2,'Leistungswerte Mittelbstg'!$R$15,'Referenzwertegeber VS'!$C$8=Dropdown!$P$3,'Leistungswerte Mittelbstg'!$R$16),$R$15) -> 1 | T22: 1 | W22: =+B22*G22*I22*K22*M22*O22*Q22*T22 -> 2.25 | X22: =1/W22 -> 0.4444444444
A23: Fundament + Kante setzen | B23: 1.7 | C23: =1/B23 -> 0.5882352941 | D23: =+$B$1*C23*2 -> 0 | E23: mit Faktor 2 | G23: 1 | I23: =+IFERROR(_xlfn.IFS('Referenzwertegeber VS'!$C$28=Dropdown!$E$2,$J$15,'Referenzwertegeber VS'!$C$28=Dropdown!$E$4,$J$17),$J$16) -> 1 | K23: 1 | M23: =+IF('Referenzwertegeber VS'!$C$41=Dropdown!$H$2,$N$15,$N$17) -> 1 | O23: =+IFERROR(_xlfn.IFS('Referenzwertegeber VS'!$C$30=Dropdown!$K$2,'Leistungswerte Mittelbstg'!$P$15,'Referenzwertegeber VS'!$C$30=Dropdown!$K$3,'Leistungswerte Mittelbstg'!$P$16,'Referenzwertegeber VS'!$C$30=Dropdown!$K$4,'Leistungswerte Mittelbstg'!$P$17),1) -> 1 | Q23: =IFERROR(+_xlfn.IFS('Referenzwertegeber VS'!$C$8=Dropdown!$P$2,'Leistungswerte Mittelbstg'!$R$15,'Referenzwertegeber VS'!$C$8=Dropdown!$P$3,'Leistungswerte Mittelbstg'!$R$16),$R$15) -> 1 | T23: 1 | W23: =+B23*G23*I23*K23*M23*O23*Q23*T23 -> 1.7 | X23: =1/W23 -> 0.5882352941
A24: Kabeltiefbau | B24: 12 | C24: =1/B24 -> 0.08333333333 | D24: =+$B$1*C24 -> 0 | G24: 1 | I24: 1 | K24: 1 | M24: =+IF('Referenzwertegeber VS'!$C$41=Dropdown!$H$2,$N$16,$N$17) -> 1 | O24: 1 | Q24: =IFERROR(+_xlfn.IFS('Referenzwertegeber VS'!$C$8=Dropdown!$P$2,'Leistungswerte Mittelbstg'!$R$15,'Referenzwertegeber VS'!$C$8=Dropdown!$P$3,'Leistungswerte Mittelbstg'!$R$16),$R$15) -> 1 | T24: 1 | W24: 12 | X24: 0.08333333333
A25: Entwässerung | B25: 5 | C25: 0.2 | D25: 0 | G25: 1 | I25: 1 | K25: 1 | M25: =+IF('Referenzwertegeber VS'!$C$41=Dropdown!$H$2,$N$16,$N$17) -> 1 | O25: 1 | Q25: =IFERROR(+_xlfn.IFS('Referenzwertegeber VS'!$C$8=Dropdown!$P$2,'Leistungswerte Mittelbstg'!$R$15,'Referenzwertegeber VS'!$C$8=Dropdown!$P$3,'Leistungswerte Mittelbstg'!$R$16),$R$15) -> 1 | T25: 1 | W25: 5 | X25: 0.2
A26: Verfüllen | B26: 3 | C26: 0.3333333333 | D26: 0 | G26: =+IFERROR(_xlfn.IFS('Referenzwertegeber VS'!$C$13=Dropdown!$D$11,'Leistungswerte Mittelbstg'!$H$15,'Referenzwertegeber VS'!$C$13=Dropdown!$D$12,'Leistungswerte Außenbahnsteig'!$G$3,'Referenzwertegeber VS'!$C$13=Dropdown!$D$13,'Leistungswerte Außenbahnsteig'!$G$4),1) -> 1 | I26: =+IFERROR(_xlfn.IFS('Referenzwertegeber VS'!$C$28=Dropdown!$E$2,$J$15,'Referenzwertegeber VS'!$C$28=Dropdown!$E$4,$J$17),$J$16) -> 1 | K26: =+IF('Referenzwertegeber VS'!$C$43=Dropdown!$I$11,'Leistungswerte Mittelbstg'!$L$15,'Leistungswerte Mittelbstg'!$L$16) -> 1 | M26: =+IF('Referenzwertegeber VS'!$C$41=Dropdown!$H$2,$N$16,$N$17) -> 1 | O26: =+IFERROR(_xlfn.IFS('Referenzwertegeber VS'!$C$30=Dropdown!$K$2,'Leistungswerte Mittelbstg'!$P$15,'Referenzwertegeber VS'!$C$30=Dropdown!$K$3,'Leistungswerte Mittelbstg'!$P$16,'Referenzwertegeber VS'!$C$30=Dropdown!$K$4,'Leistungswerte Mittelbstg'!$P$17),1) -> 1 | Q26: =IFERROR(+_xlfn.IFS('Referenzwertegeber VS'!$C$8=Dropdown!$P$2,'Leistungswerte Mittelbstg'!$R$15,'Referenzwertegeber VS'!$C$8=Dropdown!$P$3,'Leistungswerte Mittelbstg'!$R$16),$R$15) -> 1 | T26: 1 | W26: 3 | X26: 0.3333333333
A27: Pflastern | B27: 1.1 | C27: 0.9090909091 | D27: 0 | G27: =+IFERROR(_xlfn.IFS('Referenzwertegeber VS'!$C$13=Dropdown!$D$11,'Leistungswerte Mittelbstg'!$H$15,'Referenzwertegeber VS'!$C$13=Dropdown!$D$12,'Leistungswerte Außenbahnsteig'!$G$3,'Referenzwertegeber VS'!$C$13=Dropdown!$D$13,'Leistungswerte Außenbahnsteig'!$G$4),1) -> 1 | I27: 1 | K27: =+IF('Referenzwertegeber VS'!$C$43=Dropdown!$I$11,'Leistungswerte Mittelbstg'!$L$15,'Leistungswerte Mittelbstg'!$L$16) -> 1 | M27: 1 | O27: 1 | Q27: =IFERROR(+_xlfn.IFS('Referenzwertegeber VS'!$C$8=Dropdown!$P$2,'Leistungswerte Mittelbstg'!$R$15,'Referenzwertegeber VS'!$C$8=Dropdown!$P$3,'Leistungswerte Mittelbstg'!$R$16),$R$15) -> 1 | T27: 1 | W27: 1.1 | X27: 0.9090909091
A28: Beleuchtung | B28: 15 | C28: 0.06666666667 | D28: 0 | G28: 1 | I28: 1 | K28: 1 | M28: 1 | O28: 1 | Q28: =IFERROR(+_xlfn.IFS('Referenzwertegeber VS'!$C$8=Dropdown!$P$2,'Leistungswerte Mittelbstg'!$R$15,'Referenzwertegeber VS'!$C$8=Dropdown!$P$3,'Leistungswerte Mittelbstg'!$R$16),$R$15) -> 1 | T28: 1 | W28: 15 | X28: 0.06666666667
A30: Leistungswerte für Einflussfaktoren | X30: Sperrzeit onTop
W31: Summe | X31: =SUM(X32:X43) -> 72
A32: Hilfsbrücke | B32: 62 | C32: h | X32: =+B32*'Referenzwertegeber VS'!C35 -> 0 | Y32: =+X32 -> 0
A33: Behelfsbahnsteig-Errichtung | B33: 0.5 | C33: h/m | X33: =+B33*'Referenzwertegeber VS'!C33 -> 0 | Y33: =+X33 -> 0
A34: Behelfsbahnsteig-Rückbau | B34: =1/4 -> 0.25 | C34: h/m | X34: =+'Referenzwertegeber VS'!C33*'Leistungswerte Mittelbstg'!B34 -> 0 | Y34: =+X34 -> 0
A35: Bahnsteigdach | B35: =1/0.75 -> 1.333333333 | C35: h/m | X35: =+B35*'Referenzwertegeber VS'!C20 -> 0 | Y35: =+X35 -> 0
A36: Fachdienste | B36: 80 | C36: h | X36: =+IF('Referenzwertegeber VS'!C38=Dropdown!G3,'Leistungswerte Mittelbstg'!B36,40) -> 40 | Y36: =+X36 -> 40
A37: Aufzug | B37: 120 | C37: h | X37: =+IF('Referenzwertegeber VS'!C21=Dropdown!L3,'Leistungswerte Mittelbstg'!B37*'Referenzwertegeber VS'!C22*(1-'Referenzwertegeber VS'!J19),0) -> 0 | Y37: =+IF('Referenzwertegeber VS'!C21=Dropdown!L3,'Leistungswerte Mittelbstg'!B37*'Referenzwertegeber VS'!C22,0) -> 0
A38: Rampe | B38: 700 | C38: h | X38: =+IF('Referenzwertegeber VS'!C21=Dropdown!L4,'Leistungswerte Mittelbstg'!B38*'Referenzwertegeber VS'!C22*(1-'Referenzwertegeber VS'!J20),0) -> 0 | Y38: =+IF('Referenzwertegeber VS'!C21=Dropdown!L4,'Leistungswerte Mittelbstg'!B38*'Referenzwertegeber VS'!C22,0) -> 0
A39: Treppe | B39: 120 | C39: h | X39: =+IF('Referenzwertegeber VS'!C23=Dropdown!M2,'Leistungswerte Außenbahnsteig'!B23*'Referenzwertegeber VS'!C24*(1-'Referenzwertegeber VS'!J21),0) -> 0 | Y39: =+IF('Referenzwertegeber VS'!C23=Dropdown!M2,'Leistungswerte Außenbahnsteig'!B23*'Referenzwertegeber VS'!C24,0) -> 0
A40: PU | B40: 124 | C40: h | X40: =+IF('Referenzwertegeber VS'!C25=Dropdown!N2,'Leistungswerte Mittelbstg'!B40,0) -> 0 | Y40: =+X40 -> 0
A41: prov Behelfsüberführung | B41: 8 | C41: h | X41: =+IF('Referenzwertegeber VS'!C34=Dropdown!O2,'Leistungswerte Mittelbstg'!B41,0) -> 0 | Y41: =+X41 -> 0
A42: Sicherung | B42: 32 | C42: h | X42: =+B42 -> 32 | Y42: =+X42 -> 32
A43: Anteil DB Netz | X43: =SUM('Referenzwertegeber VS'!C46:C54) -> 0 | Y43: =+X43 -> 0

Sheet Dropdown (hidden)
A1: Art | B1: Schichtigkeit | C1: Woche | D1: Bahnsteigbreite | E1: Baugrund | F1: Stützwand | G1: Fachdienste | H1: Reisendenverkehr | I1: Querteilung | J1: Logistik _Abstg | K1: Logistik_Mbstg | L1: Neubau Ing | M1: Treppen | N1: PU | O1: Behelfsüberführung | P1: Bauweise | Q1: Art
A2: Außenbahnsteig | B2: Einschichtig (je zwei Kolonnen) | C2: 5-Tage Woche | D2: ≤ 2,75 m | E2: leicht | F2: ja | G2: Standard | H2: ja | I2: ja | J2: Standard (feldseitig) | K2: Standard (gleisgebunden, beim Verfüllen mit Selbstentladewagen) | L2: nein | M2: ja | N2: ja | O2: ja | P2: konventionell | Q2: Neubau
A3: Mittelbahnsteig | B3: Zweischichtig (je zwei Kolonnen) | C3: 7-Tage Woche | D3: > 2,75 m | E3: mittel | F3: nein | G3: erhöhter Bedarf | H3: nein | I3: nein | J3: schwierig (gleisgebunden) | K3: schwierig (LST Anpassung, Baustellenzufahrt über Gleise (höhengleich)) | L3: Aufzug | M3: nein | N3: nein | O3: nein | P3: modular | Q3: Erneuerung
B4: Dreischichtig (je zwei Kolonnen) | E4: schwierig | J4: sehr schwierig (z. B.: sehr lange Wege, ESTW, etc.) | K4: sehr schwierig (z. B.: sehr lange Wege, ESTW, etc.) | L4: Rampe
A9: Nur für Mittelbahnsteig
D10: Bahnsteigbreite | I10: Längsteilung
D11: 3,30 m - 5,30 m | I11: ja
D12: 5,30 m - 5,70 m | I12: nein
D13: > 5,70 m
A16: Begründungsfeld
